[Event "Swedish Championship U20 2022"]
[Site "Uppsala"]
[Date "2022.07.03"]
[Round "2.2"]
[White "Olsson, William"]
[Black "Torngren, Gustav"]
[Result "1-0"]
[ECO "A13"]
[WhiteElo "2284"]
[BlackElo "2273"]
[Annotator "TA"]
[PlyCount "55"]
[EventDate "2022.07.01"]
[EventType "tourn"]
[EventCountry "SWE"]
[SourceTitle "playchess.com"]
[Source "ChessBase"]
[SourceQuality "1"]
[TimeControl "40/5400+30:1800+30"]

{[%evp 9,55,-2,15,30,17,11,34,11,35,38,46,41,41,41,72,88,85,64,144,134,151,158,217,193,302,311,361,355,889,395,537,526,936,281,716,710,684,667,631,705,1009,1000,1370,1355,1386,1318,1243,1147]} 1. c4 {[%emt 0:00:30]} e6 {[%emt 0:00:30]} 2. Nf3 {[%emt 0:00:30]} d5 {[%emt 0:00:30]} 3. g3 {[%emt 0:00:00]} Nf6 {[%emt 0:15:10]} 4. Bg2 {[%emt 0:00:00]} d4 {[%emt 0:00:51]} 5. O-O {[%emt 0:02:59]} Be7 {[%emt 0:02:52]} 6. b4 {[%emt 0:05:17] A13: English Opening: 1...e6.} O-O {[%emt 0:00:18]} 7. Bb2 {[%emt 0:00:48]} c5 {[%emt 0:00:30]} 8. Na3 {[%emt 0:10:19][%cal Bb1a3,Ba3b5,Bb5c3,Bc3d5][%mdl 32] [#] White is slightly better.} Nbd7 $146 {[%emt 0:21:45]} ({Predecessor:} 8... cxb4 9. Nb5 d3 10. Ne5 dxe2 11. Qxe2 Nbd7 12. a3 bxa3 13. Bxa3 Bxa3 14. Rxa3 Nxe5 15. Qxe5 Qxd2 {0-1 (36) Balinov,I (2388)-Horvath,P (2484) Austria 2005}) 9. bxc5 {[%emt 0:11:33] aiming for c6.} e5 {[%emt 0:00:20]} 10. Nb5 {[%emt 0:02:26]} Bxc5 {[%emt 0:03:47]} 11. e3 {[%emt 0:01:03][%cal Re3d4]} dxe3 {[%emt 0:02:58]} 12. fxe3 {[%emt 0:00:49] White now steadily converts the win.} a6 {[%emt 0:03:16] [#]} 13. Nc3 {[%emt 0:01:01]} Qe7 {[%emt 0:00:38]} (13... b5 $14) 14. d4 $16 {[%emt 0:03:17]} Ba7 {[%emt 0:00:21]} 15. Kh1 {[%emt 0:02:42]} Rd8 {[%emt 0:01:36]} (15... exd4 $16 16. exd4 Qb4) 16. Qb3 $18 {[%emt 0:01:12]} Rb8 {[%emt 0:04:11]} (16... Re8 {was called for.} 17. Rad1 exd4 18. exd4 h6) 17. dxe5 {[%emt 0:09:08]} Ng4 {[%emt 0:00:34]} 18. Nd5 {[%emt 0:00:22]} Qe6 {[%emt 0:00:52]} (18... Qe8 19. Bd4 Bxd4 20. exd4 Nf8) 19. Bd4 {[%emt 0:00:38]} (19. Ng5 $142 Qh6 20. Ne7+ Kf8 21. Rxf7+ Ke8 22. h4) 19... Bxd4 {[%emt 0:07:04]} 20. exd4 {[%emt 0:00:11] Threatens to win with Ng5.} b5 {[%emt 0:00:02]} 21. h3 $2 {[%emt 0:05:53]} (21. Ng5 Qe8 22. Qc2) 21... Nh6 $2 {[%emt 0:11:54]} (21... bxc4 22. Qxc4 Ndxe5 23. Nxe5 Nxe5 24. dxe5 Bb7) 22. Ng5 {[%emt 0:02:06] White is clearly winning.} Qe8 {[%emt 0:00:01]} 23. c5 {[%emt 0:09:13]} Bb7 {[%emt 0:08:36]} 24. Rae1 {[%emt 0:03:34] Hoping for e6.} Nf8 {[%emt 0:00:38] Prevents e6.} 25. e6 {[%emt 0:00:36]} fxe6 {[%emt 0:01:56] [#]} 26. Nxe6 $1 {[%emt 0:00:13][%mdl 512]} Nxe6 {[%emt 0:01:35] [#]} (26... Kh8 27. Rxf8+) 27. Rxe6 $1 {[%emt 0:00:06][%mdl 512]} Qh5 {[%emt 0:01:52]} (27... Qxe6 28. Ne7+) 28. Re5 {[%emt 0:00:18] Weighted Error Value: White=0.67/Black=0.43} 1-0

[Event "Swedish Championship U20 2022"]
[Site "Uppsala"]
[Date "2022.07.03"]
[Round "2.3"]
[White "Rasti, Arvin"]
[Black "Nord, Alexander"]
[Result "1/2-1/2"]
[ECO "B51"]
[WhiteElo "2136"]
[BlackElo "2200"]
[Annotator "RC"]
[PlyCount "74"]
[EventDate "2022.07.01"]
[EventType "tourn"]
[EventCountry "SWE"]
[SourceTitle "playchess.com"]
[Source "ChessBase"]
[SourceQuality "1"]
[TimeControl "40/5400+30:1800+30"]

1. e4 {[%emt 0:00:05]} c5 {[%emt 0:00:09]} 2. Nf3 {[%emt 0:00:25]} d6 {[%emt 0:00:12]} 3. Bb5+ {[%emt 0:00:15]} Nd7 {[%emt 0:00:19]} 4. O-O {[%emt 0:00:16]} a6 {[%emt 0:00:34]} 5. Bd3 {[%emt 0:00:12]} Ngf6 {[%emt 0:01:15]} 6. Re1 {[%emt 0:00:17]} e6 {[%emt 0:02:07]} 7. c3 {[%emt 0:00:36]} Be7 {[%emt 0:01:09]} 8. Bc2 {[%emt 0:01:34]} b5 {[%emt 0:04:33]} 9. d4 {[%emt 0:00:27]} Bb7 {[%emt 0:01:06]} 10. Nbd2 {[%emt 0:00:36]} cxd4 {[%emt 0:03:59]} 11. cxd4 {[%emt 0:00:22]} Rc8 {[%emt 0:01:04]} 12. Nf1 {[%emt 0:08:07]} Qc7 {[%emt 0:09:45]} 13. Bd3 {[%emt 0:01:03]} Nb6 {[%emt 0:13:18]} 14. Ng3 {[%emt 0:07:28]} h6 {[%emt 0:03:08]} 15. b3 {[%emt 0:07:34]} O-O {[%emt 0:12:06]} 16. Ba3 {[%emt 0:07:22]} Rfe8 {[%emt 0:00:52]} 17. Rc1 {[%emt 0:04:18]} Qb8 {[%emt 0:01:53]} 18. Bb4 {[%emt 0:06:37]} Bf8 {[%emt 0:06:13]} 19. Bb1 {[%emt 0:04:35]} Rxc1 {[%emt 0:00:36]} 20. Qxc1 {[%emt 0:00:08]} e5 {[%emt 0:06:57]} 21. d5 {[%emt 0:02:35]} Bc8 {[%emt 0:00:34]} 22. Nh4 {[%emt 0:04:40]} g6 {[%emt 0:01:37]} 23. Bd3 {[%emt 0:03:31]} Bd7 {[%emt 0:00:08]} 24. Qa3 {[%emt 0:02:30]} Bc8 {[%emt 0:02:15]} 25. Qc1 {[%emt 0:03:42]} Nbd7 {[%emt 0:01:33]} 26. Bd2 {[%emt 0:02:30]} Nc5 {[%emt 0:01:23]} 27. Bc2 {[%emt 0:01:26]} Kh7 {[%emt 0:00:08]} 28. Qb2 {[%emt 0:02:31]} Bg7 {[%emt 0:00:52]} 29. Nf3 {[%emt 0:03:24]} Bg4 {[%emt 0:01:23]} 30. Re3 {[%emt 0:00:36]} Rc8 {[%emt 0:00:53]} 31. h3 {[%emt 0:01:13]} Bd7 {[%emt 0:00:08]} 32. Qa3 {[%emt 0:04:03]} Be8 {[%emt 0:04:15]} 33. Qb4 {[%emt 0:02:16]} a5 {[%emt 0:01:19]} 34. Qa3 {[%emt 0:00:18]} b4 {[%emt 0:00:40]} 35. Qb2 {[%emt 0:00:11]} Qc7 {[%emt 0:02:03]} 36. Bb1 {[%emt 0:01:31]} Nfd7 {[%emt 0:04:08]} 37. Nf1 {[%emt 0:01:43]} Rb8 {[%emt 0:01:02]} 1/2-1/2

[Event "Swedish Championship U20 2022"]
[Site "Uppsala"]
[Date "2022.07.03"]
[Round "2.4"]
[White "Soderstrom, Adrian"]
[Black "Grahn, Vidar"]
[Result "1/2-1/2"]
[ECO "D13"]
[WhiteElo "2292"]
[BlackElo "2003"]
[Annotator "TA"]
[PlyCount "89"]
[EventDate "2022.07.01"]
[EventType "tourn"]
[EventCountry "SWE"]
[SourceTitle "playchess.com"]
[Source "ChessBase"]
[SourceQuality "1"]
[TimeControl "40/5400+30:1800+30"]

{[%evp 12,89,6,0,0,0,22,33,42,38,59,29,16,20,18,12,15,19,12,12,16,0,12,0,0,-116,-112,-91,-34,-33,-20,-167,0,-41,-8,-61,-54,-168,108,70,86,0,0,0,34,0,0,-164,45,-75,-55,-104,-108,-130,84,0,65,66,99,64,64,64,64,64,64,64,64,64,64,64,64,64,64,0,64,64,64,64,101,30]} 1. d4 {[%emt 0:00:30]} d5 {[%emt 0:00:30]} 2. c4 {[%emt 0:00:30]} c6 {[%emt 0:00:30]} 3. Nf3 {[%emt 0:00:00]} Nf6 {[%emt 0:00:00]} 4. e3 {[%emt 0:00:00]} Bf5 5. cxd5 {[%emt 0:01:12]} cxd5 {[%emt 0:00:00]} 6. Nc3 {[%emt 0:00:11]} Nc6 {[%emt 0:00:00] 6...e6 is vanishing.} 7. Ne5 {[%emt 0:01:06]} Rc8 {[%emt 0:00:00] D13: Slav Defence: Exchange variation without ...Bf5.} 8. Bb5 {[%emt 0:02:14]} e6 {[%emt 0:03:30]} 9. g4 {[%emt 0:05:01]} Bg6 {[%emt 0:02:10] White is slightly better.} 10. h4 {[%emt 0:02:51]} h5 {[%emt 0:03:08]} 11. Nxg6 {[%emt 0:02:20]} fxg6 {[%emt 0:00:06]} 12. g5 {[%emt 0:00:33] [#]} Ng8 $146 {[%emt 0:03:24][%cal Bf6g8,Bg8e7,Be7f5][%mdl 32]} ({Predecessor:} 12... Nd7 13. Qc2 Ne7 14. e4 Qb6 15. Bd3 dxe4 16. Bxe4 Nf5 17. Bd2 Bb4 18. a3 Bd6 {0-1 (31) Rubingh,O (2258)-Balje,J (2189) Groningen 2013}) 13. Qa4 {[%emt 0:07:41]} a6 {[%emt 0:09:01]} 14. Bd3 {[%emt 0:01:22]} Nge7 {[%emt 0:01:45]} 15. Bd2 {[%emt 0:06:51]} Nf5 {[%emt 0:04:35]} 16. Rc1 {[%emt 0:10:33]} Bb4 {[%emt 0:11:01]} 17. a3 {[%emt 0:04:07]} Bxc3 {[%emt 0:00:21]} 18. bxc3 {[%emt 0:02:33]} (18. Rxc3 $11 O-O 19. f4) 18... O-O $17 {[%emt 0:05:49]} 19. c4 {[%emt 0:09:57]} Qe7 {[%emt 0:04:47]} (19... Qd7 $17) 20. Qb3 $15 {[%emt 0:11:26]} Qf7 {[%emt 0:04:57][%cal Of5d4]} 21. f4 {[%emt 0:03:59] [#]} (21. Rf1 $1 $11 {and White is okay.}) 21... Rce8 $2 {[%emt 0:06:36]} (21... Na5 $1 $19 {[%cal Ra5b3][%mdl 512]} 22. Qa2 (22. Bxa5 Nxe3 23. Bb4 Qxf4 $19) 22... Nxc4 23. Rxc4 (23. Bxc4 dxc4 24. Rh3 b5 $17) 23... dxc4 24. Bxc4 Rc6) 22. Qb6 {[%emt 0:12:42]} Kh7 {[%emt 0:09:21][%cal Oe6e5] Black wants to play ...e5!} 23. Kd1 {[%emt 0:03:23]} (23. Qb1 $11) 23... Qd7 {[%emt 0:06:16][%cal Oe6e5]} 24. c5 {[%emt 0:02:29]} (24. Qb1 $15) 24... Nce7 $2 {[%emt 0:05:48] Pair of Knights!} (24... e5 $1 $19 {[%cal Re5f4]} 25. fxe5 (25. dxe5 $2 d4 $19) 25... Nfxd4 26. exd4 Qg4+ 27. Kc2 Rf3) 25. Rb1 $16 {[%emt 0:01:08]} Rb8 {[%emt 0:01:28]} 26. Bc2 {[%emt 0:01:43]} (26. Rh2 $16) 26... Ng3 $1 $11 {[%emt 0:02:01]} 27. Rg1 {[%emt 0:00:33]} Ngf5 {[%emt 0:00:24]} 28. Rh1 {[%emt 0:00:31]} Ng3 $1 {[%emt 0:00:20]} 29. Rh3 {[%emt 0:01:34]} (29. Rg1 $11 {and White has nothing to worry.} Ngf5 30. Ke2) 29... Nef5 $2 {[%emt 0:07:01]} ({Black should play} 29... Ne4 $1 $19 {[%cal Oe6e5] Hoping for ...e5!} 30. Bxe4 dxe4) 30. Ke1 {[%emt 0:01:39]} (30. Kc1 $14 {keeps the upper hand.}) 30... Ne4 $1 $17 {[%emt 0:02:59][%cal Oe6e5] And now ...e5! would win.} 31. Bxe4 {[%emt 0:00:12]} (31. Rh2 $15 {is more appropriate.}) 31... dxe4 {[%emt 0:00:04]} 32. Qb3 {[%emt 0:02:17]} Qd5 $2 {[%emt 0:03:51] [#]} (32... e5 $17 {stays on course.} 33. dxe5 (33. fxe5 Ne7 $15) 33... Rfc8) 33. Kf2 {[%emt 0:00:12]} ({White should try} 33. Qxd5 $1 $16 exd5 34. Rh1) 33... Ne7 {[%emt 0:00:49]} (33... b6 $11) 34. Qxd5 $1 $14 {[%emt 0:01:09]} exd5 {[%emt 0:00:17]} 35. Ba5 {[%emt 0:00:04]} Rfc8 {[%emt 0:00:47] Prevents Bc7.} 36. Bb6 {[%emt 0:00:00] Ba7 is the strong threat.} Nc6 {[%emt 0:00:14] Prevents Ba7.} 37. Rh2 {[%emt 0:01:00]} Kg8 {[%emt 0:01:18]} 38. Kg3 {[%emt 0:00:57]} Kf7 {[%emt 0:00:40]} 39. Rf2 {[%emt 0:00:00] aiming for f5.} Ke6 {[%emt 0:00:13]} 40. Rbf1 {[%emt 0:02:38] Strongly threatening f5+. White is more active.} Kf5 {[%emt 0:00:24]} 41. Kh3 {[%emt 0:01:47]} Ra8 {[%emt 0:00:14]} 42. Kg3 {[%emt 0:02:24]} Rab8 {[%emt 0:00:07]} 43. Rg2 {[%emt 0:00:02]} Ra8 {[%emt 0:02:51]} 44. Rb1 {[%emt 0:00:04]} a5 {[%emt 0:01:25] [#]} 45. Rb5 {[%emt 0:03:57] Weighted Error Value: White=0.38/Black=0.35} (45. a4 $1 $16) 1/2-1/2

[Event "Swedish Championship U20 2022"]
[Site "Uppsala"]
[Date "2022.07.03"]
[Round "2.5"]
[White "Falkevall, Axel"]
[Black "Seo, Jung Hyun"]
[Result "1-0"]
[ECO "B12"]
[WhiteElo "2275"]
[BlackElo "2102"]
[Annotator "TA"]
[PlyCount "129"]
[EventDate "2022.07.01"]
[EventType "tourn"]
[EventCountry "SWE"]
[SourceTitle "playchess.com"]
[Source "ChessBase"]
[SourceQuality "1"]
[TimeControl "40/5400+30:1800+30"]

{[%evp 11,128,0,7,0,2,12,0,-4,12,0,0,0,0,0,118,86,115,105,107,50,51,48,46,47,158,25,66,0,0,0,0,0,16,20,19,20,20,20,20,20,19,29,66,52,76,0,0,0,0,4,9,0,0,0,0,0,0,0,87,85,358,337,405,425,530,519,807,795,668,166,664,187,175,137,2157,1783,1594,1554,846,292,495,421,421,380,5575,4981,12789,6211,29977,29979,29981,29982,29982,29983,29983,29984,29984,29984,29985,29985,29985,29986,29986,29987,29987,29988,29992,29991,29993,29994,29994,87,29995,29996,29996,29997,29998,29999,29999]} 1. e4 {[%emt 0:00:03]} c6 {[%emt 0:00:58]} 2. d4 {[%emt 0:00:11]} d5 {[%emt 0:00:03]} 3. e5 {[%emt 0:00:12]} Bf5 {[%emt 0:00:10]} 4. h4 {[%emt 0:00:10]} h5 {[%emt 0:00:57]} 5. c4 {[%emt 0:00:47]} e6 {[%emt 0:00:34]} 6. Nc3 {[%emt 0:00:41]} Ne7 {[%emt 0:01:46]} 7. Nge2 $1 {[%emt 0:02:17] 7.Nge2 scores better than 7.Bg5. B12: Caro-Kann: Advance Variation.} dxc4 {[%emt 0:01:06][%cal Oc6c5]} 8. Ng3 $1 {[%emt 0:00:32][%csl LRc4,LRh5]} b5 {[%emt 0:11:39]} 9. Bg5 {[%emt 0:17:05] aiming for Nge4. The position is equal.} Qd7 {[%emt 0:09:03] [#]} 10. Be2 $146 {[%emt 0:06:04]} ({Predecessor:} 10. a4 b4 11. Na2 b3 12. Nc3 Bc2 13. Qd2 c5 14. dxc5 Qxd2+ 15. Kxd2 Nec6 16. Nb5 {½-½ (31) Fedorchuk,S (2625)-Burmakin,V (2526) Schwaebisch Gmuend 2017}) 10... Na6 {[%emt 0:07:40]} 11. O-O {[%emt 0:19:07]} (11. Nxh5 Nb4 12. O-O Nc2 $17) 11... Nb4 {[%emt 0:13:41]} 12. a4 {[%emt 0:11:47]} (12. Nxh5 Nc2 13. Rc1 Nxd4 $17) 12... Nbd5 {[%emt 0:19:46]} (12... Bc2 $11 13. Qd2 Nf5) 13. Nxd5 {[%emt 0:05:27]} (13. Nxh5 $6 b4 14. Nxd5 cxd5 $11) (13. Bxh5 $6 Nxc3 14. bxc3 b4 $11) (13. axb5 {seems wilder.} cxb5 14. Nxf5 Nxf5 15. Nxd5 exd5 16. Bxh5 Qe6 17. Bg4) 13... exd5 {[%emt 0:09:04]} 14. Nxf5 {[%emt 0:03:14]} (14. Nxh5 Rb8 $14) (14. Bxh5 Be6 $14) (14. axb5 {is interesting.} cxb5 15. Nxf5 Nxf5 16. Bxh5 Qe6 17. Bg4) 14... Nxf5 {[%emt 0:04:40]} 15. e6 {[%emt 0:06:33]} (15. axb5 $16 cxb5 16. Bxh5) 15... fxe6 {[%emt 0:00:13]} 16. Bxh5+ {[%emt 0:01:17]} Rxh5 {[%emt 0:00:03]} 17. Qxh5+ {[%emt 0:00:09]} g6 {[%emt 0:02:16]} ({Black should play} 17... Qf7 $14 18. Qd1 b4) 18. Qg4 {[%emt 0:04:34]} (18. Qxg6+ $16 Qf7 19. Qxf7+ Kxf7 20. axb5) 18... b4 $11 {[%emt 0:02:53]} 19. Rfe1 {[%emt 0:04:08]} (19. Rae1 $14) 19... Qf7 $1 {[%emt 0:03:24]} 20. Rad1 {[%emt 0:03:21]} Kd7 $1 {[%emt 0:00:52]} 21. Qf3 {[%emt 0:03:24]} Be7 {[%emt 0:01:34]} 22. g4 $36 {[%emt 0:01:50][%mdl 2048] White has good play.} Nd6 {[%emt 0:01:13]} 23. Qxf7 {[%emt 0:00:27] Dancing on a razor blade.} Nxf7 {[%emt 0:00:03]} 24. Bxe7 {[%emt 0:00:13]} Kxe7 {[%emt 0:00:02][%mdl 4096] Endgame KRR-KRN} 25. Kg2 {[%emt 0:01:21]} Rh8 {[%emt 0:00:52]} 26. Kg3 {[%emt 0:02:03]} Kd6 {[%emt 0:00:44]} 27. f4 {[%emt 0:03:00]} Nd8 {[%emt 0:02:22]} 28. Rh1 {[%emt 0:01:16]} (28. Re5 $16) 28... c5 $1 {[%emt 0:00:16]} 29. dxc5+ {[%emt 0:00:23]} (29. h5 $6 gxh5 30. dxc5+ (30. gxh5 cxd4 31. Rxd4 Nb7 $14) (30. Rxh5 Rf8 $16) 30... Kxc5 $16) 29... Kxc5 {[%emt 0:00:01]} 30. h5 {[%emt 0:00:28]} gxh5 {[%emt 0:00:33]} 31. gxh5 {[%emt 0:00:28]} Nf7 {[%emt 0:00:10]} 32. Kf3 {[%emt 0:00:56]} c3 {[%emt 0:00:45]} 33. bxc3 {[%emt 0:00:32]} bxc3 {[%emt 0:00:00]} 34. Ke3 {[%emt 0:01:09]} Nh6 {[%emt 0:00:06]} (34... Kc4 $11 {remains equal.}) 35. Kd3 $16 {[%emt 0:01:08] Strongly threatening Rdg1.} d4 $2 {[%emt 0:01:28][%mdl 8192]} (35... Ng4 $16) 36. Rdg1 $18 {[%emt 0:00:27]} (36. Rde1 Ng4 37. Re2 e5 $16) 36... Kd5 {[%emt 0:01:47]} 37. Rg5+ {[%emt 0:00:14]} Nf5 {[%emt 0:01:21]} 38. h6 {[%emt 0:00:49] And now h7 would win.} Rb8 {[%emt 0:01:47]} (38... Rh7 $142 39. Rg6 Kd6) 39. Rg2 {[%emt 0:00:23]} (39. h7 $2 Rb2 40. Rd1 (40. Rxf5+ $2 exf5 41. Rd1 Rh2 $19) 40... Rh2 $19) 39... Ne3 {[%emt 0:01:24]} 40. Re2 $2 {[%emt 0:01:20]} (40. Rg7) 40... c2 $2 {[%emt 0:02:00]} (40... Nc4) 41. Rxe3 $2 {[%emt 0:07:50]} (41. Rh5+ Kd6 42. Rxc2) 41... dxe3 {[%emt 0:00:02] [#] KR-KR} 42. Rh5+ $1 {[%emt 0:00:52]} (42. Kxe3 Rb1 43. Rxb1 cxb1=Q 44. f5 exf5 45. h7 Qh1 46. Kf4 Qxh7 47. Ke3 Qh3+ 48. Ke2 Ke4 49. Kd1 Qg2 50. Kc1 Kd3 51. Kb1 Kc3 52. Kc1 Qh1#) (42. Kxc2 Ke4 $11) 42... Kd6 $2 {[%emt 0:07:43][%mdl 8192]} (42... Kc6 $16 43. Kxc2 Rd8) 43. Kxc2 {[%emt 0:00:28]} Ke7 {[%emt 0:05:44]} 44. h7 {[%emt 0:07:33]} (44. Kd3 Kf6 45. h7 (45. Kxe3 Kg6 $16) 45... Kg7 46. Kxe3 Kh8 $18) 44... Rh8 {[%emt 0:00:11]} 45. Kd3 $2 {[%emt 0:05:57]} (45. Ra5 Kf6 46. Rxa7) 45... e2 $2 {[%emt 0:02:03]} (45... Kf6 46. Rh6+ (46. Kxe3 Kg6 $11) 46... Kg7 47. Rxe6 Kxh7 48. Kxe3 Ra8) 46. Kxe2 {[%emt 0:00:33]} Kf6 {[%emt 0:00:20] [#]} 47. Rh6+ {[%emt 0:01:35]} Kf5 $2 {[%emt 0:07:11]} (47... Kg7 48. Rxe6 Kxh7) 48. Kf3 {[%emt 0:02:50]} a5 {[%emt 0:05:17]} 49. Kg3 {[%emt 0:01:05] White threatens Kf3 and mate.} e5 {[%emt 0:02:55]} 50. fxe5 {[%emt 0:01:49]} Kxe5 {[%emt 0:00:05]} 51. Kg4 {[%emt 0:00:27]} Kd4 {[%emt 0:00:01]} 52. Kg5 {[%emt 0:00:16]} Kc3 {[%emt 0:00:13]} 53. Kg6 {[%emt 0:00:32]} Kb3 {[%emt 0:00:03]} 54. Rh4 {[%emt 0:00:48]} Rb8 {[%emt 0:00:36]} 55. Kg7 {[%emt 0:01:07]} Rb7+ {[%emt 0:00:06]} 56. Kf6 {[%emt 0:00:10]} Rb8 {[%emt 0:00:12]} 57. h8=Q {[%emt 0:00:36]} Rxh8 {[%emt 0:00:05]} 58. Rxh8 {[%emt 0:00:06]} Kxa4 {[%emt 0:00:02] KR-KP} 59. Rb8 {[%emt 0:00:40]} Ka3 {[%emt 0:00:07]} 60. Ke5 {[%emt 0:00:14]} a4 {[%emt 0:00:05]} 61. Kd4 {[%emt 0:00:18]} Ka2 {[%emt 0:00:37]} 62. Kc3 {[%emt 0:00:16] White mates.} a3 {[%emt 0:00:08]} 63. Ra8 {[%emt 0:00:14]} Kb1 {[%emt 0:00:10]} 64. Rxa3 {[%emt 0:00:08]} Kc1 {[%emt 0:00:02]} 65. Ra1# {[%emt 0:00:09] Weighted Error Value: White=0.45/Black=0.43} 1-0